[Event "Ceske Budejovice GM 2019"]
[Site "Ceske Budejovice"]
[Date "2019.07.04"]
[Round "6.2"]
[White "Kraus, Tomas"]
[Black "Kazakov, Mikhail"]
[Result "1-0"]
[ECO "B24"]
[WhiteElo "2486"]
[BlackElo "2511"]
[Annotator "ChessBase"]
[PlyCount "61"]
[EventDate "2019.07.02"]
[EventCountry "CZE"]
[SourceTitle "playchess.com"]
[Source "ChessBase"]
[SourceQuality "1"]
[TimeControl "5400+30"]

1. e4 {[%emt 0:00:00]} c5 {[%emt 0:00:00]} 2. Nc3 {[%emt 0:03:11]} Nc6 {[%emt 0:01:25]} 3. Bb5 {[%emt 0:00:15]} Nd4 {[%emt 0:01:57]} 4. Bc4 {[%emt 0:00:50]} g6 {[%emt 0:00:06]} 5. Nge2 {[%emt 0:01:30]} Bg7 {[%emt 0:00:14]} 6. d3 {[%emt 0:09:43]} e6 {[%emt 0:03:24]} 7. Nxd4 {[%emt 0:02:07]} cxd4 {[%emt 0:00:13]} 8. Ne2 {[%emt 0:00:14]} Ne7 {[%emt 0:00:37]} 9. O-O {[%emt 0:04:15]} d5 {[%emt 0:03:19]} 10. Bb3 {[%emt 0:02:19]} h6 {[%emt 0:12:19]} 11. f4 {[%emt 0:02:59]} O-O {[%emt 0:02:24]} 12. Kh1 {[%emt 0:03:22]} dxe4 {[%emt 0:05:56]} 13. dxe4 {[%emt 0:00:06]} b6 {[%emt 0:00:27]} 14. Ng3 {[%emt 0:03:19]} h5 {[%emt 0:09:18]} 15. f5 {[%emt 0:06:24]} Nc6 {[%emt 0:05:39]} 16. Nxh5 {[%emt 0:04:23]} Qh4 {[%emt 0:04:48]} 17. Nxg7 {[%emt 0:03:19]} Kxg7 {[%emt 0:02:17]} 18. Rf4 {[%emt 0:06:45]} Qh5 {[%emt 0:00:14]} 19. Qxh5 {[%emt 0:11:27]} gxh5 {[%emt 0:00:09]} 20. Bd2 {[%emt 0:02:08]} a5 {[%emt 0:20:26]} 21. Raf1 {[%emt 0:03:55]} a4 {[%emt 0:07:42]} 22. Bc4 {[%emt 0:01:36]} Ne5 {[%emt 0:01:58]} 23. Be2 {[%emt 0:02:33]} Rh8 {[%emt 0:02:23]} 24. Bb4 {[%emt 0:01:04]} Ba6 {[%emt 0:03:57]} 25. Bxa6 {[%emt 0:01:26]} Rxa6 {[%emt 0:00:05]} 26. fxe6 {[%emt 0:01:30]} fxe6 {[%emt 0:00:46]} 27. Be7 {[%emt 0:02:33]} Nd7 {[%emt 0:06:40]} 28. Bd6 {[%emt 0:02:29]} Kg6 {[%emt 0:03:29]} 29. Rf7 {[%emt 0:00:53]} Ra7 {[%emt 0:01:12]} 30. Be5 {[%emt 0:04:39]} Nxe5 {[%emt 0:00:42]} 31. Rxa7 {[%emt 0:00:28]} 1-0

[Event "Ceske Budejovice GM 2019"]
[Site "Ceske Budejovice"]
[Date "2019.07.04"]
[Round "6.3"]
[White "Dhulipalla Bala Chandra Prasad"]
[Black "Pulpan, Jakub"]
[Result "1/2-1/2"]
[ECO "A14"]
[WhiteElo "2419"]
[BlackElo "2414"]
[Annotator "NA"]
[PlyCount "35"]
[EventDate "2019.07.02"]
[EventCountry "CZE"]
[SourceTitle "playchess.com"]
[Source "ChessBase"]
[SourceQuality "1"]
[TimeControl "5400+30"]

1. c4 {[%emt 0:00:00]} e6 {[%emt 0:00:12]} 2. g3 {[%emt 0:00:01]} d5 {[%emt 0:00:29]} 3. Nf3 {[%emt 0:00:46]} Nf6 {[%emt 0:00:36]} 4. Bg2 {[%emt 0:00:16]} Be7 {[%emt 0:00:20]} 5. O-O {[%emt 0:00:10]} O-O {[%emt 0:00:16]} 6. b3 {[%emt 0:00:04]} b6 {[%emt 0:00:54]} 7. Bb2 {[%emt 0:00:28]} Bb7 {[%emt 0:00:26]} 8. e3 {[%emt 0:00:48]} c5 {[%emt 0:00:52]} 9. Nc3 {[%emt 0:00:21]} Nbd7 {[%emt 0:00:32]} 10. Qe2 {[%emt 0:04:28]} Rc8 {[%emt 0:01:54]} 11. Rfd1 {[%emt 0:08:27]} Qc7 {[%emt 0:03:11]} 12. cxd5 {[%emt 0:04:35]} Nxd5 {[%emt 0:09:38]} 13. Nxd5 {[%emt 0:11:57]} Bxd5 {[%emt 0:01:22]} 14. e4 {[%emt 0:00:14]} Bb7 {[%emt 0:06:02]} 15. d4 {[%emt 0:02:42]} Nf6 {[%emt 0:09:40]} 16. dxc5 {[%emt 0:12:02]} Bxe4 {[%emt 0:04:51]} 17. cxb6 {[%emt 0:06:52]} Qxb6 {[%emt 0:02:20]} 18. Bxf6 {[%emt 0:01:44]} 1/2-1/2

[Event "Ceske Budejovice GM 2019"]
[Site "Ceske Budejovice"]
[Date "2019.07.04"]
[Round "6.4"]
[White "Olsen, Filip Boe"]
[Black "Simacek, Pavel"]
[Result "1/2-1/2"]
[ECO "A61"]
[WhiteElo "2383"]
[BlackElo "2490"]
[Annotator "ChessBase"]
[PlyCount "89"]
[EventDate "2019.07.02"]
[EventCountry "CZE"]
[SourceTitle "playchess.com"]
[Source "ChessBase"]
[SourceQuality "1"]
[TimeControl "5400+30"]

1. d4 {[%emt 0:00:00]} Nf6 {[%emt 0:00:00]} 2. c4 {[%emt 0:00:00]} c5 {[%emt 0:00:00]} 3. d5 {[%emt 0:00:00]} e6 {[%emt 0:00:00]} 4. Nc3 {[%emt 0:00:01]} exd5 {[%emt 0:00:01]} 5. cxd5 {[%emt 0:00:11]} d6 {[%emt 0:00:06]} 6. Nf3 {[%emt 0:00:19]} g6 {[%emt 0:00:17]} 7. Bf4 {[%emt 0:00:26]} a6 {[%emt 0:00:20]} 8. a4 {[%emt 0:00:12]} Bg7 {[%emt 0:00:10]} 9. h3 {[%emt 0:00:19]} O-O {[%emt 0:00:14]} 10. e3 {[%emt 0:00:06]} Re8 {[%emt 0:00:42]} 11. Nd2 {[%emt 0:00:51]} Nbd7 {[%emt 0:01:24]} 12. Nc4 {[%emt 0:05:01]} Ne4 {[%emt 0:01:35]} 13. Nxe4 {[%emt 0:03:10]} Rxe4 {[%emt 0:00:06]} 14. Bd3 {[%emt 0:05:12]} Rxc4 {[%emt 0:00:11]} 15. Bxc4 {[%emt 0:00:06]} Bxb2 {[%emt 0:00:09]} 16. Rb1 {[%emt 0:00:41]} Bc3+ {[%emt 0:03:11]} 17. Kf1 {[%emt 0:01:43]} Nb6 {[%emt 0:09:31]} 18. Qc2 {[%emt 0:11:17]} Bb4 {[%emt 0:05:53]} 19. h4 {[%emt 0:13:12]} Bd7 {[%emt 0:09:06]} 20. Bb3 {[%emt 0:04:49]} a5 {[%emt 0:04:03]} 21. Qd1 {[%emt 0:20:47]} c4 {[%emt 0:00:52]} 22. Bc2 {[%emt 0:00:24]} Qf6 {[%emt 0:02:58]} 23. Kg1 {[%emt 0:08:35]} Bf5 {[%emt 0:14:49]} 24. h5 {[%emt 0:11:16]} g5 {[%emt 0:13:07]} 25. e4 {[%emt 0:03:56]} Bxe4 {[%emt 0:12:13]} 26. Bxg5 {[%emt 0:01:07]} Bxc2 {[%emt 0:04:36]} 27. Bxf6 {[%emt 0:00:32]} Bxd1 {[%emt 0:00:04]} 28. Rxd1 {[%emt 0:00:05]} c3 {[%emt 0:00:09]} 29. Rh3 {[%emt 0:01:00]} c2 {[%emt 0:01:44]} 30. Rc1 {[%emt 0:00:42]} Rc8 {[%emt 0:00:31]} 31. Rg3+ {[%emt 0:01:14]} Kf8 {[%emt 0:00:04]} 32. Rg7 {[%emt 0:00:51]} Bc3 {[%emt 0:08:05]} 33. Bxc3 {[%emt 0:00:30]} Rxc3 {[%emt 0:00:04]} 34. h6 {[%emt 0:02:47]} Nxd5 {[%emt 0:04:54]} 35. Rxh7 {[%emt 0:00:11]} Kg8 {[%emt 0:00:24]} 36. Rg7+ {[%emt 0:00:07]} Kh8 {[%emt 0:00:02]} 37. Rxf7 {[%emt 0:03:48]} Nb4 {[%emt 0:00:12]} 38. Kh2 {[%emt 0:00:33]} Rc8 {[%emt 0:02:32]} 39. g4 {[%emt 0:01:28]} Nd3 {[%emt 0:04:03]} 40. g5 {[%emt 0:01:42]} Nxc1 {[%emt 0:00:45]} 41. g6 {[%emt 0:00:27]} Nd3 {[%emt 0:00:00]} 42. Rh7+ {[%emt 0:00:00]} Kg8 {[%emt 0:00:00]} 43. Rg7+ {[%emt 0:00:00]} Kf8 {[%emt 0:00:00]} 44. Rf7+ {[%emt 0:00:00]} Kg8 {[%emt 0:00:00]} 45. Rg7+ {[%emt 0:00:00]} 1/2-1/2

[Event "Ceske Budejovice GM 2019"]
[Site "Ceske Budejovice"]
[Date "2019.07.04"]
[Round "6.5"]
[White "Szotkowski, Jakub"]
[Black "Stefansson, Hannes"]
[Result "0-1"]
[ECO "A50"]
[WhiteElo "2378"]
[BlackElo "2562"]
[Annotator "ChessBase"]
[PlyCount "82"]
[EventDate "2019.07.02"]
[EventCountry "CZE"]
[SourceTitle "playchess.com"]
[Source "ChessBase"]
[SourceQuality "1"]
[TimeControl "5400+30"]

1. d4 {[%emt 0:00:00]} Nf6 {[%emt 0:00:00]} 2. c4 {[%emt 0:00:00]} b6 {[%emt 0:00:08]} 3. Nf3 {[%emt 0:08:23]} Bb7 {[%emt 0:00:41]} 4. e3 {[%emt 0:01:38]} g6 {[%emt 0:03:37]} 5. Be2 {[%emt 0:00:23]} Bg7 {[%emt 0:00:35]} 6. O-O {[%emt 0:00:08]} O-O {[%emt 0:00:38]} 7. b3 {[%emt 0:01:19]} c5 {[%emt 0:06:58]} 8. Bb2 {[%emt 0:01:32]} cxd4 {[%emt 0:01:59]} 9. Nxd4 {[%emt 0:02:40]} d5 {[%emt 0:05:06]} 10. Nd2 {[%emt 0:03:35]} Nbd7 {[%emt 0:01:59]} 11. Rc1 {[%emt 0:01:58]} Nc5 {[%emt 0:04:39]} 12. b4 {[%emt 0:04:21]} Nce4 {[%emt 0:00:16]} 13. Nxe4 {[%emt 0:02:24]} Nxe4 {[%emt 0:00:14]} 14. c5 {[%emt 0:01:54]} bxc5 {[%emt 0:07:50]} 15. bxc5 {[%emt 0:01:44]} Rc8 {[%emt 0:03:00]} 16. c6 {[%emt 0:10:24]} Ba8 {[%emt 0:00:32]} 17. Bg4 {[%emt 0:03:10]} Rc7 {[%emt 0:02:32]} 18. Bd7 {[%emt 0:03:03]} a6 {[%emt 0:05:07]} 19. Bc3 {[%emt 0:07:52]} e5 {[%emt 0:08:08]} 20. Nf3 {[%emt 0:04:03]} Nxc3 {[%emt 0:05:33]} 21. Rxc3 {[%emt 0:00:08]} Rxd7 {[%emt 0:00:58]} 22. cxd7 {[%emt 0:00:13]} Qxd7 {[%emt 0:00:08]} 23. Qc1 {[%emt 0:06:46]} d4 {[%emt 0:03:07]} 24. exd4 {[%emt 0:01:07]} exd4 {[%emt 0:07:27]} 25. Rd1 {[%emt 0:01:17]} Re8 {[%emt 0:04:40]} 26. h3 {[%emt 0:03:23]} Bf6 {[%emt 0:02:56]} 27. Rc7 {[%emt 0:05:35]} Qd8 {[%emt 0:02:54]} 28. Qf4 {[%emt 0:07:33]} Re4 {[%emt 0:02:13]} 29. Qc1 {[%emt 0:00:14]} Re8 {[%emt 0:00:44]} 30. Re1 {[%emt 0:03:17]} Rf8 {[%emt 0:01:34]} 31. Nd2 {[%emt 0:04:12]} d3 {[%emt 0:02:48]} 32. Rc4 {[%emt 0:03:59]} Bg5 {[%emt 0:01:30]} 33. Qd1 {[%emt 0:03:13]} Qd5 {[%emt 0:01:42]} 34. Rg4 {[%emt 0:00:25]} h5 {[%emt 0:01:03]} 35. Rg3 {[%emt 0:00:14]} Qf5 {[%emt 0:06:24]} 36. Nf1 {[%emt 0:03:13]} Rd8 {[%emt 0:00:19]} 37. Ne3 {[%emt 0:00:17]} Qf6 {[%emt 0:00:20]} 38. Kf1 {[%emt 0:02:47]} Bf4 {[%emt 0:01:29]} 39. Rf3 {[%emt 0:00:21]} d2 {[%emt 0:00:34]} 40. Re2 {[%emt 0:00:31]} Bxf3 {[%emt 0:00:19]} 41. gxf3 {[%emt 0:00:03]} Qc3 {[%emt 0:01:29]} 0-1

[Event "Ceske Budejovice GM 2019"]
[Site "Ceske Budejovice"]
[Date "2019.07.05"]
[Round "7.1"]
[White "Stefansson, Hannes"]
[Black "Miesbauer, Jan"]
[Result "1-0"]
[ECO "B67"]
[WhiteElo "2562"]
[BlackElo "2409"]
[Annotator "ChessBase"]
[PlyCount "105"]
[EventDate "2019.07.02"]
[EventCountry "CZE"]
[SourceTitle "playchess.com"]
[Source "ChessBase"]
[SourceQuality "1"]
[TimeControl "5400+30"]

1. e4 {[%emt 0:00:00]} c5 {[%emt 0:00:00]} 2. Nf3 {[%emt 0:00:00]} Nc6 {[%emt 0:00:17]} 3. d4 {[%emt 0:00:02]} cxd4 {[%emt 0:00:07]} 4. Nxd4 {[%emt 0:00:09]} Nf6 {[%emt 0:01:01]} 5. Nc3 {[%emt 0:00:10]} d6 {[%emt 0:00:07]} 6. Bg5 {[%emt 0:00:31]} e6 {[%emt 0:00:17]} 7. Qd2 {[%emt 0:00:15]} a6 {[%emt 0:00:20]} 8. O-O-O {[%emt 0:00:36]} Bd7 {[%emt 0:00:51]} 9. f3 {[%emt 0:01:21]} Be7 {[%emt 0:00:49]} 10. h4 {[%emt 0:01:40]} h6 {[%emt 0:02:00]} 11. Be3 {[%emt 0:00:25]} h5 {[%emt 0:00:10]} 12. Bg5 {[%emt 0:02:03]} Rc8 {[%emt 0:04:44]} 13. Nxc6 {[%emt 0:03:03]} Bxc6 {[%emt 0:00:41]} 14. Kb1 {[%emt 0:02:46]} b5 {[%emt 0:01:29]} 15. Ne2 {[%emt 0:01:08]} Qb6 {[%emt 0:02:54]} 16. Nd4 {[%emt 0:02:56]} Bd7 {[%emt 0:04:24]} 17. Qe1 {[%emt 0:05:03]} Qc5 {[%emt 0:12:35]} 18. Rd2 {[%emt 0:03:05]} a5 {[%emt 0:05:42]} 19. Be3 {[%emt 0:01:15]} Qc7 {[%emt 0:18:33]} 20. Nxb5 {[%emt 0:02:02]} Qb8 {[%emt 0:00:04]} 21. a4 {[%emt 0:02:14]} d5 {[%emt 0:03:51]} 22. Ba7 {[%emt 0:03:52]} Qb7 {[%emt 0:03:22]} 23. e5 {[%emt 0:01:45]} Ng8 {[%emt 0:00:32]} 24. Qf2 {[%emt 0:06:11]} Nh6 {[%emt 0:00:57]} 25. Bd3 {[%emt 0:01:21]} O-O {[%emt 0:01:56]} 26. Qg1 {[%emt 0:05:31]} f6 {[%emt 0:04:51]} 27. exf6 {[%emt 0:02:14]} Bxf6 {[%emt 0:00:08]} 28. g4 {[%emt 0:01:38]} Nf7 {[%emt 0:00:36]} 29. Bd4 {[%emt 0:07:20]} Bxb5 {[%emt 0:06:23]} 30. axb5 {[%emt 0:00:22]} Nd6 {[%emt 0:00:30]} 31. Qe3 {[%emt 0:08:07]} e5 {[%emt 0:06:19]} 32. Bxe5 {[%emt 0:00:35]} Rfe8 {[%emt 0:00:23]} 33. f4 {[%emt 0:00:17]} d4 {[%emt 0:00:17]} 34. Qg1 {[%emt 0:00:33]} Bxe5 {[%emt 0:00:24]} 35. fxe5 {[%emt 0:00:04]} Rxe5 {[%emt 0:00:28]} 36. gxh5 {[%emt 0:01:02]} Rxh5 {[%emt 0:04:32]} 37. Qg2 {[%emt 0:04:49]} Rc7 {[%emt 0:06:16]} 38. Re1 {[%emt 0:04:24]} Qxg2 {[%emt 0:03:07]} 39. Rxg2 {[%emt 0:00:05]} Rxh4 {[%emt 0:03:29]} 40. Re6 {[%emt 0:04:47]} Rd7 {[%emt 0:01:30]} 41. Rgg6 {[%emt 0:08:16]} Nb7 {[%emt 0:00:08]} 42. Rg5 {[%emt 0:00:35]} Nd8 {[%emt 0:00:00]} 43. Ra6 {[%emt 0:00:00]} Kf8 {[%emt 0:00:00]} 44. Rxa5 {[%emt 0:00:00]} Rh6 {[%emt 0:00:00]} 45. Ra6 {[%emt 0:00:00]} Rdd6 {[%emt 0:00:00]} 46. Ra7 {[%emt 0:00:00]} Ne6 {[%emt 0:00:00]} 47. Re5 {[%emt 0:00:00]} Rf6 {[%emt 0:00:00]} 48. Bc4 {[%emt 0:00:00]} Nd8 {[%emt 0:00:00]} 49. Ka2 {[%emt 0:00:00]} g6 {[%emt 0:00:00]} 50. Ka3 {[%emt 0:00:00]} Rf5 {[%emt 0:00:00]} 51. Ree7 {[%emt 0:00:00]} g5 {[%emt 0:00:00]} 52. Rh7 {[%emt 0:00:00]} Ke8 {[%emt 0:00:00]} 53. Be2 {[%emt 0:00:00]} 1-0

[Event "Ceske Budejovice GM 2019"]
[Site "Ceske Budejovice"]
[Date "2019.07.05"]
[Round "7.2"]
[White "Simacek, Pavel"]
[Black "Szotkowski, Jakub"]
[Result "1-0"]
[ECO "B19"]
[WhiteElo "2490"]
[BlackElo "2378"]
[Annotator "ChessBase"]
[PlyCount "95"]
[EventDate "2019.07.02"]
[EventCountry "CZE"]
[SourceTitle "playchess.com"]
[Source "ChessBase"]
[SourceQuality "1"]
[TimeControl "5400+30"]

1. e4 {[%emt 0:00:00]} c6 {[%emt 0:00:00]} 2. d4 {[%emt 0:00:13]} d5 {[%emt 0:00:00]} 3. Nc3 {[%emt 0:00:15]} dxe4 {[%emt 0:00:02]} 4. Nxe4 {[%emt 0:00:03]} Bf5 {[%emt 0:00:10]} 5. Ng3 {[%emt 0:00:23]} Bg6 {[%emt 0:00:09]} 6. h4 {[%emt 0:00:25]} h6 {[%emt 0:00:11]} 7. Nf3 {[%emt 0:00:13]} Nd7 {[%emt 0:00:10]} 8. h5 {[%emt 0:00:30]} Bh7 {[%emt 0:00:09]} 9. Bd3 {[%emt 0:00:07]} Bxd3 {[%emt 0:00:05]} 10. Qxd3 {[%emt 0:00:05]} e6 {[%emt 0:00:09]} 11. Bf4 {[%emt 0:00:12]} Qa5+ {[%emt 0:00:12]} 12. Bd2 {[%emt 0:00:09]} Bb4 {[%emt 0:00:07]} 13. c3 {[%emt 0:00:13]} Be7 {[%emt 0:00:12]} 14. c4 {[%emt 0:00:11]} Qc7 {[%emt 0:00:06]} 15. d5 {[%emt 0:00:08]} O-O-O {[%emt 0:23:27]} 16. O-O {[%emt 0:17:24]} Ngf6 {[%emt 0:05:39]} 17. Qe2 {[%emt 0:15:03]} Rhe8 {[%emt 0:12:54]} 18. dxc6 {[%emt 0:00:38]} bxc6 {[%emt 0:01:26]} 19. b4 {[%emt 0:01:24]} Kb8 {[%emt 0:08:20]} 20. Rab1 {[%emt 0:03:57]} Ka8 {[%emt 0:00:41]} 21. c5 {[%emt 0:02:55]} Nd5 {[%emt 0:02:52]} 22. Rfc1 {[%emt 0:00:19]} Rb8 {[%emt 0:03:00]} 23. a4 {[%emt 0:10:06]} Rec8 {[%emt 0:01:14]} 24. Ne4 {[%emt 0:19:13]} N7f6 {[%emt 0:07:49]} 25. Nxf6 {[%emt 0:00:23]} Bxf6 {[%emt 0:00:33]} 26. b5 {[%emt 0:00:13]} Rb7 {[%emt 0:06:50]} 27. b6 {[%emt 0:11:10]} axb6 {[%emt 0:03:54]} 28. cxb6 {[%emt 0:00:13]} Rxb6 {[%emt 0:00:49]} 29. Ba5 {[%emt 0:00:08]} Rxb1 {[%emt 0:00:06]} 30. Qa6+ {[%emt 0:00:07]} Qa7 {[%emt 0:00:04]} 31. Qxc8+ {[%emt 0:00:06]} Rb8 {[%emt 0:00:08]} 32. Qxc6+ {[%emt 0:00:03]} Qb7 {[%emt 0:00:33]} 33. Qc4 {[%emt 0:00:11]} Nb6 {[%emt 0:05:12]} 34. Bxb6 {[%emt 0:07:15]} Qxb6 {[%emt 0:00:07]} 35. Nd2 {[%emt 0:01:57]} Ka7 {[%emt 0:02:43]} 36. Ne4 {[%emt 0:02:30]} Bd4 {[%emt 0:06:55]} 37. a5 {[%emt 0:02:47]} Qb2 {[%emt 0:03:18]} 38. Rc2 {[%emt 0:03:36]} Qb1+ {[%emt 0:03:53]} 39. Kh2 {[%emt 0:00:04]} Be5+ {[%emt 0:00:13]} 40. g3 {[%emt 0:01:57]} Qb5 {[%emt 0:04:08]} 41. Qc5+ {[%emt 0:00:00]} Ka8 {[%emt 0:00:00]} 42. Qe3 {[%emt 0:00:00]} Qb3 {[%emt 0:00:00]} 43. Qe2 {[%emt 0:00:00]} Rb5 {[%emt 0:00:00]} 44. Nc5 {[%emt 0:00:00]} Qb1 {[%emt 0:00:00]} 45. Qf3+ {[%emt 0:00:00]} Kb8 {[%emt 0:00:00]} 46. Nd7+ {[%emt 0:00:00]} Ka7 {[%emt 0:00:00]} 47. Qe3+ {[%emt 0:00:00]} Kb7 {[%emt 0:00:00]} 48. Qe4+ {[%emt 0:00:00]} 1-0

[Event "Ceske Budejovice GM 2019"]
[Site "Ceske Budejovice"]
[Date "2019.07.05"]
[Round "7.3"]
[White "Pulpan, Jakub"]
[Black "Olsen, Filip Boe"]
[Result "1/2-1/2"]
[ECO "B92"]
[WhiteElo "2414"]
[BlackElo "2383"]
[Annotator "NA"]
[PlyCount "37"]
[EventDate "2019.07.02"]
[EventCountry "CZE"]
[SourceTitle "playchess.com"]
[Source "ChessBase"]
[SourceQuality "1"]
[TimeControl "5400+30"]

1. e4 {[%emt 0:00:00]} c5 {[%emt 0:00:00]} 2. Nf3 {[%emt 0:00:07]} d6 {[%emt 0:00:00]} 3. d4 {[%emt 0:00:46]} cxd4 {[%emt 0:00:00]} 4. Nxd4 {[%emt 0:00:17]} Nf6 {[%emt 0:00:00]} 5. Nc3 {[%emt 0:00:24]} a6 {[%emt 0:00:08]} 6. Be2 {[%emt 0:01:17]} e5 {[%emt 0:00:08]} 7. Nf3 {[%emt 0:00:06]} h6 {[%emt 0:00:22]} 8. a4 {[%emt 0:03:25]} Be7 {[%emt 0:01:11]} 9. Nd2 {[%emt 0:05:16]} Be6 {[%emt 0:06:13]} 10. Nc4 {[%emt 0:08:04]} Nxe4 {[%emt 0:08:35]} 11. Nxe4 {[%emt 0:10:14]} d5 {[%emt 0:00:58]} 12. Bg4 {[%emt 0:16:40]} dxc4 {[%emt 0:11:40]} 13. Qxd8+ {[%emt 0:01:16]} Kxd8 {[%emt 0:00:11]} 14. Bxe6 {[%emt 0:00:14]} fxe6 {[%emt 0:00:02]} 15. Nd2 {[%emt 0:00:47]} c3 {[%emt 0:02:00]} 16. bxc3 {[%emt 0:00:36]} Nd7 {[%emt 0:01:17]} 17. Ke2 {[%emt 0:04:06]} Rc8 {[%emt 0:03:02]} 18. Ne4 {[%emt 0:04:44]} Nf6 {[%emt 0:02:31]} 19. Rd1+ {[%emt 0:02:42]} 1/2-1/2

[Event "Ceske Budejovice GM 2019"]
[Site "Ceske Budejovice"]
[Date "2019.07.05"]
[Round "7.4"]
[White "Kazakov, Mikhail"]
[Black "Dhulipalla Bala Chandra Prasad"]
[Result "0-1"]
[ECO "C95"]
[WhiteElo "2511"]
[BlackElo "2419"]
[Annotator "ChessBase"]
[PlyCount "100"]
[EventDate "2019.07.02"]
[EventCountry "CZE"]
[SourceTitle "playchess.com"]
[Source "ChessBase"]
[SourceQuality "1"]
[TimeControl "5400+30"]

1. e4 {[%emt 0:00:00]} e5 {[%emt 0:00:45]} 2. Nf3 {[%emt 0:00:00]} Nc6 {[%emt 0:00:03]} 3. Bb5 {[%emt 0:00:00]} a6 {[%emt 0:00:03]} 4. Ba4 {[%emt 0:00:09]} Nf6 {[%emt 0:00:05]} 5. O-O {[%emt 0:00:22]} Be7 {[%emt 0:00:05]} 6. Re1 {[%emt 0:00:08]} b5 {[%emt 0:00:03]} 7. Bb3 {[%emt 0:00:08]} d6 {[%emt 0:00:03]} 8. c3 {[%emt 0:01:28]} O-O {[%emt 0:00:06]} 9. h3 {[%emt 0:00:05]} Nb8 {[%emt 0:00:02]} 10. d4 {[%emt 0:01:11]} Nbd7 {[%emt 0:00:05]} 11. Nbd2 {[%emt 0:00:22]} Bb7 {[%emt 0:00:05]} 12. Bc2 {[%emt 0:00:28]} Re8 {[%emt 0:00:07]} 13. Nf1 {[%emt 0:00:26]} Bf8 {[%emt 0:00:05]} 14. Ng3 {[%emt 0:00:18]} g6 {[%emt 0:00:05]} 15. a4 {[%emt 0:01:25]} Nb6 {[%emt 0:00:23]} 16. axb5 {[%emt 0:10:14]} axb5 {[%emt 0:00:20]} 17. Bg5 {[%emt 0:00:13]} h6 {[%emt 0:05:23]} 18. Rxa8 {[%emt 0:02:02]} Bxa8 {[%emt 0:00:33]} 19. Bc1 {[%emt 0:02:55]} Qd7 {[%emt 0:18:39]} 20. b3 {[%emt 0:08:19]} c5 {[%emt 0:08:29]} 21. dxe5 {[%emt 0:04:49]} dxe5 {[%emt 0:00:12]} 22. Qe2 {[%emt 0:00:08]} Bc6 {[%emt 0:06:40]} 23. Nh2 {[%emt 0:15:20]} Qe6 {[%emt 0:03:52]} 24. Nhf1 {[%emt 0:05:25]} Ra8 {[%emt 0:01:15]} 25. Ne3 {[%emt 0:00:26]} c4 {[%emt 0:03:48]} 26. bxc4 {[%emt 0:09:18]} bxc4 {[%emt 0:00:31]} 27. Bd2 {[%emt 0:00:16]} Ra2 {[%emt 0:09:12]} 28. Rb1 {[%emt 0:00:44]} Bc5 {[%emt 0:00:38]} 29. Qd1 {[%emt 0:12:16]} Qd7 {[%emt 0:09:55]} 30. Qf3 {[%emt 0:12:09]} Rxc2 {[%emt 0:09:14]} 31. Nxc2 {[%emt 0:05:19]} Qxd2 {[%emt 0:00:08]} 32. Nb4 {[%emt 0:01:14]} Qd6 {[%emt 0:03:56]} 33. Na6 {[%emt 0:07:06]} Nbd7 {[%emt 0:02:55]} 34. Rd1 {[%emt 0:00:49]} Qe7 {[%emt 0:00:08]} 35. Nxc5 {[%emt 0:00:26]} Nxc5 {[%emt 0:00:45]} 36. Re1 {[%emt 0:00:16]} Kg7 {[%emt 0:00:43]} 37. Qe2 {[%emt 0:00:53]} Nd3 {[%emt 0:00:48]} 38. Ra1 {[%emt 0:00:50]} Qc5 {[%emt 0:01:39]} 39. Qf3 {[%emt 0:00:26]} h5 {[%emt 0:01:11]} 40. h4 {[%emt 0:00:43]} Qb6 {[%emt 0:00:16]} 41. Qe2 {[%emt 0:00:00]} Ng4 {[%emt 0:00:00]} 42. Nh1 {[%emt 0:00:00]} Qd8 {[%emt 0:00:00]} 43. g3 {[%emt 0:00:00]} Qb6 {[%emt 0:00:00]} 44. Kg2 {[%emt 0:00:00]} f5 {[%emt 0:00:00]} 45. f3 {[%emt 0:00:00]} Ne3+ {[%emt 0:00:00]} 46. Kh2 {[%emt 0:00:00]} fxe4 {[%emt 0:00:00]} 47. fxe4 {[%emt 0:00:00]} Bxe4 {[%emt 0:00:00]} 48. Qa2 {[%emt 0:00:00]} Ng4+ {[%emt 0:00:00]} 49. Kh3 {[%emt 0:00:00]} Qe6 {[%emt 0:00:00]} 50. Qa7+ {[%emt 0:00:00]} Kh6 {[%emt 0:00:00]} 0-1

[Event "Ceske Budejovice GM 2019"]
[Site "Ceske Budejovice"]
[Date "2019.07.05"]
[Round "7.5"]
[White "Vykouk, Jan"]
[Black "Kraus, Tomas"]
[Result "1-0"]
[ECO "B30"]
[WhiteElo "2453"]
[BlackElo "2486"]
[Annotator "ChessBase"]
[PlyCount "105"]
[EventDate "2019.07.02"]
[EventCountry "CZE"]
[SourceTitle "playchess.com"]
[Source "ChessBase"]
[SourceQuality "1"]
[TimeControl "5400+30"]

1. e4 {[%emt 0:00:00]} c5 {[%emt 0:00:30]} 2. Nf3 {[%emt 0:00:00]} Nc6 {[%emt 0:00:21]} 3. Nc3 {[%emt 0:00:00]} e5 {[%emt 0:00:48]} 4. Bc4 {[%emt 0:00:00]} g6 {[%emt 0:00:39]} 5. d3 {[%emt 0:00:00]} h6 {[%emt 0:00:23]} 6. Be3 {[%emt 0:00:24]} d6 {[%emt 0:00:55]} 7. Qd2 {[%emt 0:00:07]} Bg7 {[%emt 0:01:14]} 8. h4 {[%emt 0:00:09]} Nf6 {[%emt 0:08:13]} 9. Nd5 {[%emt 0:00:06]} Be6 {[%emt 0:07:44]} 10. Nxf6+ {[%emt 0:00:57]} Qxf6 {[%emt 0:00:16]} 11. h5 {[%emt 0:02:14]} g5 {[%emt 0:03:33]} 12. Nh2 {[%emt 0:01:11]} Rd8 {[%emt 0:05:47]} 13. f3 {[%emt 0:03:18]} O-O {[%emt 0:06:23]} 14. Ng4 {[%emt 0:01:11]} Qe7 {[%emt 0:00:18]} 15. Bf2 {[%emt 0:00:05]} f5 {[%emt 0:07:40]} 16. Ne3 {[%emt 0:08:50]} f4 {[%emt 0:00:05]} 17. Bxe6+ {[%emt 0:08:23]} Qxe6 {[%emt 0:00:06]} 18. Nd5 {[%emt 0:00:05]} Ne7 {[%emt 0:01:26]} 19. Nxe7+ {[%emt 0:02:13]} Qxe7 {[%emt 0:00:05]} 20. c4 {[%emt 0:00:11]} Qd7 {[%emt 0:04:41]} 21. b4 {[%emt 0:01:37]} b6 {[%emt 0:06:14]} 22. b5 {[%emt 0:00:56]} a5 {[%emt 0:01:44]} 23. bxa6 {[%emt 0:02:49]} Ra8 {[%emt 0:00:46]} 24. Ke2 {[%emt 0:01:04]} Rxa6 {[%emt 0:00:39]} 25. Rab1 {[%emt 0:01:42]} Bf6 {[%emt 0:03:18]} 26. Rb5 {[%emt 0:00:31]} Bd8 {[%emt 0:02:06]} 27. Qc2 {[%emt 0:01:27]} Kh8 {[%emt 0:03:22]} 28. a4 {[%emt 0:00:32]} Rg8 {[%emt 0:03:23]} 29. Kd2 {[%emt 0:04:46]} g4 {[%emt 0:03:35]} 30. Kc3 {[%emt 0:00:07]} g3 {[%emt 0:03:09]} 31. Be1 {[%emt 0:00:05]} Qa7 {[%emt 0:00:24]} 32. a5 {[%emt 0:03:35]} Rxa5 {[%emt 0:03:04]} 33. Rxa5 {[%emt 0:00:05]} Qxa5+ {[%emt 0:03:39]} 34. Kb2 {[%emt 0:00:05]} Qa6 {[%emt 0:04:49]} 35. Bc3 {[%emt 0:00:15]} b5 {[%emt 0:03:58]} 36. Ra1 {[%emt 0:00:04]} Qb7 {[%emt 0:00:09]} 37. cxb5 {[%emt 0:00:48]} Qxb5+ {[%emt 0:00:04]} 38. Qb3 {[%emt 0:00:06]} Qxb3+ {[%emt 0:02:03]} 39. Kxb3 {[%emt 0:00:06]} Be7 {[%emt 0:02:34]} 40. Ra7 {[%emt 0:01:28]} Re8 {[%emt 0:00:24]} 41. Kc4 {[%emt 0:00:42]} Kg7 {[%emt 0:01:08]} 42. Kd5 {[%emt 0:00:45]} Kf7 {[%emt 0:00:00]} 43. Ba5 {[%emt 0:00:00]} Rb8 {[%emt 0:00:00]} 44. Bc7 {[%emt 0:00:00]} Rb3 {[%emt 0:00:00]} 45. Bd8 {[%emt 0:00:00]} Rxd3+ {[%emt 0:00:00]} 46. Kc4 {[%emt 0:00:00]} Rd2 {[%emt 0:00:00]} 47. Bxe7 {[%emt 0:00:00]} Rxg2 {[%emt 0:00:00]} 48. Bh4+ {[%emt 0:00:00]} Kg8 {[%emt 0:00:00]} 49. Kd5 {[%emt 0:00:00]} Rh2 {[%emt 0:00:00]} 50. Bf6 {[%emt 0:00:00]} Rxh5 {[%emt 0:00:00]} 51. Ke6 {[%emt 0:00:00]} c4 {[%emt 0:00:40]} 52. Ra8+ {[%emt 0:00:00]} Kh7 {[%emt 0:00:05]} 53. Kf7 {[%emt 0:00:00]} 1-0